bitfinex/quotes_ETHUSD_20241122
["timestamp","ask_amount","ask_price","bid_price","bid_amount"]
[1732244025362,0.0336226,3332.9,3332.5,0.7754]
[1732244025558,3.03398377,3333.0,3332.5,0.7754]
[1732244025753,0.03356142,3332.8,3332.5,0.7754]
[1732244025969,3.00016,3333.2,3332.5,1.07547]
[1732244026295,0.03350024,3332.7,3332.5,1.07547]
[1732244026590,0.03343905,3332.6,3332.5,1.07547]
[1732244026799,3.8204,3333.8,3333.1,0.30001]
[1732244026800,0.8204,3333.8,3333.1,0.30001]
[1732244027093,2.99965,3333.8,3333.2,0.8224]
[1732244027315,0.03411189,3333.7,3333.2,0.8224]
[1732244027605,3.03384189,3333.7,3333.2,0.8224]
[1732244027754,0.03411189,3333.7,3333.2,0.8224]
[1732244028070,2.99972,3333.7,3333.2,0.8224]
[1732244028266,0.03310575,3333.6,3333.2,0.8224]
[1732244028466,0.03310575,3333.6,3332.5,0.2998]
[1732244028467,2.99995,3333.4,3332.9,0.8224]
[1732244028746,3.00018,3333.2,3332.6,0.8224]
[1732244028920,0.38216023,3333.2,3332.3,0.8224]
[1732244029056,3.00071,3332.6,3331.9,0.8224]
[1732244029256,3.00071,3332.6,3331.9,1.12252]
[1732244029460,3.0331705,3332.5,3331.9,1.294766]
[1732244029662,3.0331705,3332.5,3331.9,1.594566]
[1732244031974,0.0324205,3332.5,3332.0,0.30011]
[1732244032207,3.00058,3332.7,3332.1,0.1894676]
[1732244032363,3.0,3333.0,3331.9,0.8224]
[1732244032364,3.00093,3332.3,3331.9,0.8224]
[1732244032569,3.00081,3332.5,3331.9,0.8224]
[1732244032810,6.00035,3333.0,3331.9,0.8224]
[1732244032811,0.03345125,3332.2,3331.9,0.8224]
[1732244032969,0.03345125,3332.2,3331.7,0.2998]
[1732244032970,3.00138,3331.8,3331.5,0.8224]
[1732244033171,3.0014,3331.8,3331.2,0.8224]
[1732244033508,0.03309035,3331.7,3331.2,1.12258]
[1732244034511,0.03309035,3331.7,3331.2,0.8224]
[1732244034902,3.00156,3331.6,3331.2,0.8224]
[1732244035112,0.03549448,3331.5,3331.2,0.8224]
[1732244035611,3.00121,3332.0,3331.2,1.12258]
[1732244035808,3.0,3332.3,3331.2,1.12258]
[1732244035974,3.0013,3331.9,3331.2,1.12258]
[1732244036175,3.00111,3332.1,3331.2,0.8224]
[1732244036382,6.00121,3332.0,3331.4,0.30016]
[1732244036675,3.00121,3332.0,3331.4,0.30016]
[1732244036871,3.0,3332.1,3331.2,1.12259]
[1732244037089,3.00127,3332.0,3331.3,0.30018]
[1732244037291,6.00113,3332.1,3331.5,0.30016]
[1732244037499,3.0,3332.1,3331.3,0.30018]
[1732244037774,3.00126,3332.0,3331.3,0.30018]
[1732244038700,3.0,3332.1,3331.4,0.30016]
[1732244039204,3.00158,3331.6,3331.2,0.8224]
[1732244039374,3.00155,3331.7,3331.2,0.8224]
[1732244039578,3.00099,3332.3,3331.2,0.8224]
[1732244039886,3.00174,3331.4,3330.9,0.8224]
[1732244040413,0.03281144,3331.3,3330.9,0.8224]
[1732244041421,3.03470144,3331.3,3330.6,0.8224]
[1732244042078,3.03470144,3331.3,3330.6,1.12264]
[1732244042377,3.03470144,3331.3,3330.6,0.8224]
[1732244042719,3.0021,3331.0,3330.6,0.8224]
[1732244042884,0.03253382,3330.9,3330.6,0.8224]
[1732244043227,0.03253382,3330.9,3329.9,0.3003]
[1732244043535,0.03253382,3330.9,3329.8,0.8224]
[1732244043536,3.00288,3330.2,3329.8,0.8224]
[1732244043952,3.03739682,3330.1,3329.8,0.8224]
[1732244044263,3.03739682,3330.1,3328.8,0.03003158]
[1732244044264,0.03446682,3330.1,3329.4,0.8224]
[1732244044423,3.00309,3329.9,3329.4,0.8224]
[1732244044617,3.00247,3330.6,3329.7,0.30032]
[1732244044618,0.03439611,3330.0,3329.7,0.30032]
[1732244044982,3.00254,3330.6,3329.7,1.12272]
[1732244045115,3.00254,3330.6,3330.0,0.30029]
[1732244045323,3.00255,3330.5,3329.8,0.30031]
[1732244045517,3.00237,3330.7,3329.7,1.12272]
[1732244045823,3.00303,3330.0,3329.4,0.8224]
[1732244046155,0.7885,3330.5,3329.4,0.8224]
[1732244046319,3.00307,3330.0,3329.4,0.8224]
[1732244046922,3.00286,3330.2,3329.5,0.30034]
[1732244047586,3.00286,3330.2,3329.4,0.8224]
[1732244047745,3.00265,3330.4,3329.6,0.30033]
[1732244048051,3.00273,3330.3,3329.6,0.30033]
[1732244048251,3.00282,3330.2,3329.6,0.30033]
[1732244048762,3.79105,3330.5,3328.7,0.2998]
[1732244048763,3.00309,3329.9,3329.2,0.30037]
[1732244048975,3.00301,3330.0,3329.3,0.30035]
[1732244049478,3.00301,3330.0,3329.2,0.30037]
[1732244049479,3.00301,3330.0,3329.4,0.30035]
[1732244049656,3.0,3330.3,3329.1,0.8224]
[1732244049985,3.00201,3331.1,3330.5,0.30025]
[1732244050181,0.7885,3331.2,3330.5,0.30025]
[1732244050546,0.7885,3331.2,3330.4,0.30026]
[1732244050547,3.00202,3331.1,3330.4,0.30026]
[1732244051688,3.00212,3331.0,3330.4,0.30026]
[1732244052061,3.0022,3330.9,3330.3,0.30027]
[1732244052883,3.00219,3330.9,3330.1,0.30028]
[1732244053045,3.0,3330.8,3330.3,0.30027]
[1732244053583,0.31630352,3330.9,3330.3,0.30027]
[1732244053754,0.31630352,3330.9,3330.1,0.30029]
[1732244053969,3.00166,3331.5,3330.8,0.30022]
[1732244054280,3.0013,3331.9,3331.3,0.30018]
[1732244054481,3.00139,3331.8,3331.1,0.6]
[1732244054644,3.00139,3331.8,3331.2,0.30019]
[1732244054845,0.69550352,3331.9,3331.1,0.6]
[1732244054846,3.00147,3331.7,3331.1,0.6]
[1732244055049,3.301506,3331.7,3331.1,0.6]
[1732244055276,4.57558212,3332.0,3331.1,0.6]
[1732244055277,4.57558212,3332.0,3331.1,0.2998]
[1732244055491,3.00174,3331.4,3330.8,0.2998]
[1732244055864,0.03526516,3331.3,3330.8,0.2998]
[1732244056394,0.03526516,3331.3,3331.0,0.2998]
[1732244056594,0.03526516,3331.3,3331.0,0.6]
[1732244056755,3.00158,3331.6,3331.0,0.6]
[1732244056954,0.03068459,3331.5,3331.0,0.6]
[1732244057284,0.03068459,3331.5,3331.4,0.30017]
[1732244057446,0.03068459,3331.5,3331.4,0.59997]
[1732244057648,3.00104,3332.2,3331.5,0.2998]
[1732244057846,3.678288,3332.2,3331.6,0.59995]
[1732244058276,3.678288,3332.2,3331.6,0.30015]
[1732244058480,3.678288,3332.2,3331.5,0.30016]
[1732244058812,3.0,3332.1,3331.5,0.30016]
[1732244058993,3.31829152,3332.1,3331.5,0.30016]
[1732244059789,3.00136,3331.9,3331.1,0.30019]
[1732244059991,3.678688,3331.8,3331.1,0.30019]
[1732244061662,3.678688,3331.8,3331.2,0.30019]
[1732244062373,3.0,3332.1,3331.0,0.7996]
[1732244062601,3.00123,3332.0,3331.3,0.30017]
[1732244062804,3.00103,3332.2,3331.0,0.7996]
[1732244063097,3.0,3332.1,3331.5,0.30016]
[1732244063482,3.0,3332.0,3331.5,0.30016]
[1732244064023,6.00121,3332.0,3331.4,0.30017]
[1732244064196,0.600121,3331.9,3331.5,0.30016]
[1732244064513,3.0,3332.2,3331.5,0.30016]
[1732244064883,3.0,3332.0,3331.5,0.30016]
[1732244065111,3.6,3332.0,3331.5,0.30016]
[1732244065488,6.60122,3332.0,3331.3,0.30018]
[1732244065684,6.60122,3332.0,3331.1,0.3002]
[1732244065685,7.15747945,3332.0,3331.1,0.3002]
[1732244065883,3.00146,3331.8,3331.1,0.3002]
[1732244066220,6.00174,3331.4,3330.8,0.30022]
[1732244066422,6.00174,3331.4,3330.7,0.8282]
[1732244066423,3.00186,3331.3,3330.7,0.8282]
[1732244066576,0.6,3331.3,3330.7,1.12843]
[1732244066913,3.0,3331.5,3330.9,0.30021]
[1732244067480,3.00123,3332.0,3331.2,0.8024]
[1732244067681,3.0,3331.9,3331.3,0.30017]
[1732244067981,3.35697795,3332.0,3331.2,1.10259]
[1732244067982,3.00141,3331.8,3331.2,1.10259]
[1732244068184,3.63712579,3331.8,3331.2,1.10259]
[1732244068382,0.63571579,3331.8,3331.2,0.8024]
[1732244068612,6.00124,3332.0,3331.4,0.30017]
[1732244068917,0.01,3333.1,3331.3,0.2998]
[1732244068918,6.00105,3332.2,3331.3,0.2998]
[1732244069133,6.00105,3332.2,3331.5,0.30015]
[1732244070108,3.0,3332.0,3331.5,0.30015]
[1732244070308,6.00098,3332.3,3331.6,0.30015]
[1732244070519,0.03461904,3331.9,3331.5,0.30015]
[1732244070717,0.69453652,3332.2,3331.7,0.30014]
[1732244071025,3.00057,3332.7,3331.8,1.1022]
[1732244071198,0.7534,3333.2,3332.4,0.30007]
[1732244071403,0.57450356,3333.1,3332.6,1.10246]
[1732244072022,3.57473356,3333.1,3332.6,0.8024]
[1732244072431,0.57450356,3333.1,3332.6,1.10246]
[1732244072592,2.99962,3333.8,3332.6,1.10246]
[1732244072593,0.7534,3333.6,3333.0,0.30002]
[1732244072786,2.99972,3333.7,3333.1,0.30001]
[1732244073110,2.9994,3334.0,3333.4,0.8024]
[1732244073327,2.9994,3334.0,3333.4,1.10239]
[1732244073328,3.37468,3334.0,3333.4,1.10239]
[1732244074436,3.0,3333.9,3333.4,1.10239]
[1732244077026,3.0,3333.9,3333.4,0.8024]
[1732244078342,0.7534,3335.1,3333.4,0.8024]
[1732244078526,2.99878,3334.7,3333.7,0.8024]
[1732244078741,0.7534,3335.1,3333.9,0.29994]
[1732244079041,0.7534,3335.1,3333.7,0.8024]
[1732244079257,2.99874,3334.8,3334.0,0.29993]
[1732244079544,2.99874,3334.8,3334.1,0.29993]
[1732244079838,2.99874,3334.8,3334.2,1.10232]
[1732244080047,3.373678,3335.0,3334.2,1.10232]
[1732244080048,2.9986,3334.9,3334.2,1.10232]
[1732244080206,0.375168,3335.0,3334.2,0.8024]
[1732244080401,3.0,3334.9,3334.3,0.29991]
[1732244080949,3.0,3334.9,3334.2,1.10232]
[1732244081152,3.0,3334.8,3334.2,1.10232]
[1732244081511,5.99874,3334.8,3334.2,0.8024]
[1732244081943,2.99878,3334.7,3334.2,0.8024]
[1732244082441,3.0,3334.9,3334.2,0.8024]
[1732244082442,2.99868,3334.8,3334.2,0.8024]
[1732244082741,2.99911,3334.4,3333.8,0.7553]
[1732244082943,2.99919,3334.3,3333.8,0.7553]
[1732244083242,2.99958,3333.8,3333.4,0.7553]
[1732244083576,2.99958,3333.8,3333.1,0.7553]
[1732244083841,2.99986,3333.5,3333.1,0.7553]
[1732244084051,2.99967,3333.7,3333.1,0.7553]
[1732244084224,0.299967,3333.6,3332.7,0.7553]
[1732244084417,0.7797,3333.8,3332.8,0.2998]
[1732244084740,2.99994,3333.4,3332.7,1.05535]
[1732244085357,0.04606189,3333.3,3332.8,0.2998]
[1732244086529,0.04606189,3333.3,3332.8,0.59984]
[1732244086969,0.04606189,3333.3,3333.0,0.7553]
[1732244087119,3.0,3333.8,3333.2,0.59981]
[1732244087446,0.04646959,3333.7,3333.3,0.59979]
[1732244087654,0.04646959,3333.7,3333.4,0.59979]
[1732244087858,3.0,3333.9,3333.4,0.59979]
[1732244088172,0.04633273,3333.6,3333.4,0.59979]
[1732244088475,0.04622143,3333.5,3333.4,0.2998]
[1732244088966,0.04622654,3333.5,3333.4,0.2998]
[1732244089157,3.0,3333.9,3333.4,0.2998]
[1732244089357,2.9994,3334.0,3333.4,0.2998]
[1732244089567,0.04663419,3333.9,3333.5,1.35508]
[1732244090041,0.04653229,3333.8,3333.7,0.2998]
[1732244090431,2.99946,3334.0,3333.7,0.2998]
[1732244090636,2.99968,3333.7,3333.4,0.2998]
[1732244090874,2.99968,3333.7,3333.3,0.2998]
[1732244091185,0.046334,3333.6,3333.3,0.2998]
[1732244091667,2.99956,3333.9,3333.3,0.5998]
[1732244091833,0.04623208,3333.5,3333.3,0.5998]
[1732244092033,2.99956,3333.9,3333.3,0.5998]
[1732244092272,0.04613016,3333.4,3333.3,0.5998]
[1732244092434,2.99959,3333.8,3333.3,0.2998]
[1732244092639,0.04613016,3333.4,3333.3,0.2998]
[1732244092842,2.99974,3333.7,3333.3,0.2998]
[1732244093080,0.04613016,3333.4,3333.3,0.2998]
[1732244093372,0.8107,3333.8,3332.9,0.2998]
[1732244093373,3.8107,3333.8,3332.9,0.2998]
[1732244093559,3.00012,3333.2,3332.9,0.2998]
[1732244093763,0.04582434,3333.1,3332.9,0.2998]
[1732244093967,3.04604434,3333.1,3332.9,0.2998]
[1732244094278,0.04582434,3333.1,3332.9,0.2998]
[1732244094572,2.99981,3333.6,3332.9,0.2998]
[1732244094775,0.04622186,3333.5,3332.9,0.2998]
[1732244095680,2.99985,3333.5,3332.9,0.2998]
[1732244095973,0.04611993,3333.4,3332.9,0.2998]
[1732244096434,2.99972,3333.7,3332.9,0.2998]
[1732244096542,0.04601076,3333.3,3332.2,0.7698]
[1732244096742,0.04601076,3333.3,3332.7,0.2998]
[1732244096969,0.04132062,3333.2,3332.9,0.2998]
[1732244097155,2.99992,3333.5,3332.9,0.2998]
[1732244097364,0.04611567,3333.4,3332.9,0.2998]
[1732244097675,2.99984,3333.6,3332.9,0.2998]
[1732244097844,3.0414539,3333.3,3332.9,0.2998]
[1732244098046,3.0414539,3333.3,3332.8,0.7698]
[1732244098047,3.00004,3333.3,3332.8,0.7698]
[1732244098265,0.0459135,3333.2,3332.8,0.7698]
[1732244098641,3.00004,3333.3,3332.8,0.7698]
[1732244098889,0.0412212,3333.1,3332.8,0.7698]
[1732244099046,0.04590328,3333.2,3332.8,0.7698]
[1732244099380,0.04569938,3333.0,3332.8,0.7698]
[1732244099681,0.04559743,3332.9,3332.8,0.7698]
[1732244100218,0.04103768,3332.9,3332.8,0.7698]
[1732244100479,0.04103768,3332.9,3331.2,0.01]
[1732244100480,0.34516945,3332.9,3332.2,0.2998]
[1732244100686,3.0004,3332.9,3332.2,0.2998]
[1732244100988,0.0511685,3332.8,3332.3,1.0696]
[1732244101143,3.0,3333.2,3332.3,0.2998]
[1732244101344,0.0412097,3333.1,3332.5,0.2998]
[1732244101551,3.0,3333.4,3332.5,0.2998]
[1732244101776,2.99992,3333.5,3332.5,0.2998]
[1732244101777,0.04139319,3333.3,3332.5,0.2998]
[1732244101980,3.0,3333.5,3332.5,0.2998]
[1732244102179,3.00008,3333.3,3332.5,0.2998]
[1732244102366,3.04588581,3333.2,3332.5,0.2998]
[1732244102568,3.0003,3333.0,3332.5,0.2998]
[1732244102768,0.04557996,3332.9,3332.5,0.2998]
[1732244103067,3.00023,3333.1,3332.5,0.2998]
[1732244103280,0.04547799,3332.8,3332.5,0.2998]
[1732244103461,3.0,3333.2,3332.5,0.2998]
[1732244103657,0.04537602,3332.7,3332.5,0.2998]
[1732244103869,3.0,3333.2,3332.5,0.2998]
[1732244104087,0.04527405,3332.6,3332.5,0.2998]
[1732244104278,3.0,3333.2,3332.5,0.2998]
[1732244104477,0.04527405,3332.6,3332.5,0.2998]
[1732244104673,2.99985,3333.5,3331.9,0.2998]
[1732244104674,3.0,3333.4,3331.9,0.2998]
[1732244104972,2.99985,3333.5,3332.4,0.2998]
[1732244105201,0.04148072,3333.4,3332.9,0.7698]
[1732244105509,2.99992,3333.5,3333.0,0.2998]
[1732244105713,0.04138859,3333.3,3333.0,0.2998]
[1732244105868,3.00004,3333.3,3333.0,0.2998]
[1732244106072,0.04129685,3333.2,3333.0,0.2998]
[1732244106531,2.99992,3333.5,3333.0,0.2998]
[1732244106738,0.04578344,3333.1,3333.0,0.2998]
[1732244106903,3.0,3333.4,3333.0,0.2998]
[1732244107093,0.04578344,3333.1,3333.0,0.2998]
[1732244107289,3.0,3333.4,3333.1,0.2998]
[1732244107290,6.8087,3333.4,3333.1,0.2998]
[1732244107534,3.0,3333.3,3333.1,0.2998]
[1732244107829,6.00012,3333.2,3332.6,0.2998]
[1732244108130,3.0,3333.2,3332.6,0.2998]
[1732244108285,6.00018,3333.2,3332.6,0.2998]
[1732244109456,2.99938,3334.1,3333.3,1.0696]
[1732244109725,2.99898,3334.5,3333.7,0.2998]
[1732244109887,2.99882,3334.7,3333.7,0.2998]
[1732244110086,2.99872,3334.8,3333.7,0.45299734]
[1732244110311,3.55413412,3335.3,3334.1,0.2998]
[1732244110312,3.80693,3335.3,3334.1,0.2998]
[1732244110588,2.99808,3335.5,3334.5,0.2998]
[1732244110789,0.8087,3335.7,3334.5,0.2998]
[1732244111218,2.9982,3335.4,3334.5,0.2998]
[1732244112144,2.9983,3335.3,3334.5,0.2998]
[1732244112442,2.99832,3335.2,3334.5,0.2998]
[1732244112632,3.0,3335.4,3334.5,0.2998]
[1732244113207,0.43628341,3335.6,3334.5,0.2998]
[1732244113552,3.80658,3335.7,3334.7,0.2998]
[1732244113553,2.99806,3335.5,3334.7,0.2998]
[1732244113842,2.99788,3335.7,3334.7,0.2998]
[1732244114044,0.380658,3335.6,3334.6,0.7632]
[1732244114251,2.9978,3335.8,3334.8,0.7632]
[1732244114754,2.9976,3336.0,3334.8,0.7632]
[1732244114905,0.37524,3335.9,3334.8,0.7632]
[1732244115105,0.04913918,3336.0,3334.8,0.7632]
[1732244115347,0.7548,3336.2,3334.8,0.7632]
[1732244115348,3.75226,3336.2,3334.8,0.7632]
[1732244115643,2.99771,3335.9,3334.8,0.7632]
[1732244116651,2.99779,3335.8,3334.8,0.7632]
[1732244116861,2.99796,3335.6,3334.8,0.7632]
[1732244117146,2.99814,3335.4,3334.8,0.7632]
[1732244117524,2.99796,3335.6,3334.8,0.7632]
[1732244118430,2.99779,3335.8,3334.8,0.7632]
[1732244118609,3.0,3336.0,3334.8,0.7632]
[1732244118610,2.99806,3335.5,3334.8,0.7632]
[1732244119225,2.99769,3335.9,3334.8,0.7632]
[1732244119438,2.99825,3335.3,3334.8,0.7632]
[1732244120226,2.99838,3335.2,3334.8,0.7632]
[1732244120427,0.7548,3335.7,3334.8,0.7632]
[1732244120740,2.99822,3335.4,3334.8,0.7632]
[1732244121542,2.99851,3335.0,3334.8,0.7632]
[1732244121738,3.598184,3335.0,3334.8,0.7632]
[1732244121958,2.99859,3334.9,3334.8,0.7632]
[1732244122368,2.99885,3334.7,3333.6,0.7632]
[1732244122668,2.99885,3334.7,3333.8,0.7632]
[1732244123272,2.99895,3334.5,3333.8,0.7632]
[1732244123431,0.7548,3335.3,3333.8,0.7632]
[1732244123631,0.375308,3335.2,3333.8,0.7632]
[1732244123861,2.99903,3334.5,3333.8,0.7632]
[1732244124233,2.9992,3334.3,3333.8,0.7632]
[1732244124440,2.99924,3334.2,3333.8,0.7632]
[1732244124644,2.99924,3334.2,3333.0,4.57131718]
[1732244124645,2.99949,3333.9,3333.4,0.7632]
[1732244125039,2.99973,3333.7,3333.4,0.7632]
[1732244125251,2.99949,3333.9,3333.4,0.7632]
[1732244126038,2.99959,3333.8,3333.4,0.7632]
[1732244126283,2.99976,3333.6,3333.4,0.7632]
[1732244126514,2.99977,3333.6,3333.4,0.7632]
[1732244126847,2.99985,3333.5,3333.4,0.7632]
[1732244127383,3.00003,3333.3,3331.9,0.8159]
[1732244127566,3.00003,3333.3,3332.1,0.8159]
[1732244127752,3.00029,3333.1,3332.1,0.8159]
[1732244127962,0.7909,3333.9,3332.1,0.8159]
[1732244127963,3.0003,3333.0,3332.1,0.8159]
[1732244128292,3.00075,3332.5,3332.1,0.8159]
[1732244128494,3.00048,3332.8,3332.1,0.8159]
[1732244128649,3.00068,3332.6,3332.1,0.8159]
[1732244130079,3.00091,3332.4,3332.1,0.8159]
[1732244130295,3.0,3333.1,3332.1,0.8159]
[1732244130296,3.00056,3332.8,3332.1,0.8159]
[1732244131065,6.00012,3333.2,3332.1,0.8159]
[1732244131404,3.00037,3333.0,3332.1,0.8159]
[1732244131602,3.00031,3333.0,3332.1,0.8159]
[1732244132374,0.600031,3333.0,3332.1,0.8159]
[1732244132580,3.00067,3332.6,3332.1,0.8159]
[1732244132900,0.600031,3333.0,3332.1,0.8159]
[1732244132901,3.00102,3332.2,3332.1,0.8159]
[1732244133106,3.00118,3332.1,3331.1,0.8159]
[1732244133305,0.7909,3332.8,3331.1,0.8159]
[1732244133306,3.00095,3332.3,3331.1,0.8159]
[1732244133473,3.00108,3332.2,3331.1,0.8159]
[1732244133866,3.00127,3332.0,3331.1,0.8159]
[1732244134061,3.0,3332.5,3331.1,0.8159]
[1732244134309,0.7909,3332.1,3331.1,0.8159]
[1732244134604,3.00153,3331.7,3331.1,0.8159]
[1732244134763,3.00142,3331.8,3331.1,0.8159]
[1732244134969,3.00129,3331.9,3331.1,0.8159]
[1732244135270,3.0012,3332.0,3331.1,0.8159]
[1732244135777,3.00147,3331.7,3331.1,0.8159]
[1732244136087,3.0013,3331.9,3331.1,0.8159]
[1732244136286,0.37909,3332.4,3331.1,0.8159]
[1732244136535,3.00168,3331.5,3331.1,0.8159]
[1732244136803,3.00167,3331.5,3329.7,0.8159]
[1732244137001,3.00167,3331.5,3330.0,0.8159]
[1732244137002,3.00177,3331.4,3330.0,0.8159]
[1732244137186,3.00177,3331.4,3330.2,0.8159]
[1732244137386,0.7909,3332.0,3330.2,0.8159]
[1732244137704,3.00138,3331.8,3330.2,0.8159]
[1732244138067,3.00147,3331.7,3330.2,0.8159]
[1732244138269,3.00198,3331.2,3330.2,0.8159]
[1732244138464,3.00204,3331.1,3330.2,0.8159]
[1732244139986,3.00176,3331.4,3330.2,0.8159]
[1732244140188,3.00176,3331.4,3330.2,0.84592321]
[1732244140699,0.7909,3332.0,3330.2,0.8159]
[1732244140700,3.00184,3331.3,3330.2,0.8159]
[1732244140999,3.00225,3330.9,3330.2,0.8159]
[1732244141379,3.00228,3330.8,3330.2,0.8159]
[1732244141781,3.00237,3330.7,3330.2,0.8159]
[1732244142401,3.00252,3330.6,3330.2,0.8159]
[1732244142572,3.00257,3330.5,3330.2,0.8159]
[1732244143268,3.00268,3330.4,3329.3,0.8054]
[1732244143692,3.00289,3330.2,3329.3,0.8054]
[1732244143892,3.00268,3330.4,3329.3,0.8054]
[1732244144092,3.00292,3330.1,3329.3,0.8054]
[1732244144397,3.00282,3330.2,3329.3,0.8054]
[1732244144585,0.8227,3330.9,3329.3,0.8054]
[1732244144779,3.00255,3330.5,3329.3,0.8054]
[1732244146280,3.00246,3330.6,3329.4,0.83543027]
[1732244146615,1.43577252,3330.9,3329.4,0.83543027]
[1732244146616,3.0023,3330.8,3329.4,0.8054]
[1732244146782,3.0023,3330.8,3329.1,3.03003027]
[1732244146783,3.00252,3330.6,3329.6,0.8054]
[1732244146982,3.00268,3330.4,3329.6,0.8054]
[1732244148006,3.00237,3330.7,3329.6,0.8054]
[1732244148217,3.0029,3330.2,3329.6,0.8054]
[1732244148711,3.00267,3330.4,3329.6,0.8054]
[1732244148908,3.00247,3330.6,3329.6,0.8054]
[1732244149208,0.8227,3330.9,3329.7,0.2992]
[1732244149386,3.00256,3330.5,3329.7,0.2992]
[1732244150168,3.00266,3330.4,3329.7,0.2992]
[1732244150395,3.0,3330.4,3329.7,0.2992]
[1732244150585,3.00294,3330.1,3329.7,0.2992]
[1732244150782,3.0,3330.4,3329.7,0.2992]
[1732244151168,3.00261,3330.5,3329.7,0.2992]
[1732244151405,3.00264,3330.4,3329.7,0.2992]
[1732244151610,3.00282,3330.2,3329.7,0.2992]
[1732244151807,3.00264,3330.4,3329.7,0.2992]
[1732244152106,6.00247,3330.6,3329.7,0.2992]
[1732244152981,3.00247,3330.6,3329.7,0.2992]
[1732244153182,3.0023,3330.8,3329.7,0.2992]
[1732244153373,3.00274,3330.3,3329.7,0.2992]
[1732244153715,3.00292,3330.1,3329.7,0.2992]
[1732244155216,3.00274,3330.3,3329.7,0.2992]
[1732244155513,3.0,3330.4,3329.7,0.2992]
[1732244155711,3.00264,3330.4,3329.7,0.2992]
[1732244156007,6.00247,3330.6,3329.7,0.2992]
[1732244156169,3.00273,3330.3,3329.7,0.2992]
[1732244156375,3.00285,3330.2,3329.7,0.2992]
[1732244156800,3.00264,3330.4,3329.7,0.2992]
[1732244157001,3.00291,3330.1,3329.7,0.2992]
[1732244157727,3.303201,3330.1,3329.7,0.2992]
[1732244158233,0.300291,3330.1,3329.7,0.2992]
[1732244158400,3.00289,3330.2,3329.7,0.2992]
[1732244159308,3.00258,3330.5,3329.7,0.2992]
[1732244159526,3.0,3330.4,3329.7,0.2992]
[1732244159698,3.602958,3330.4,3329.7,0.2992]
[1732244159900,3.00298,3330.1,3329.7,0.2992]
[1732244160607,3.0031,3329.9,3329.7,0.2992]
[1732244160923,3.00298,3330.1,3329.7,0.2992]
[1732244161122,3.303278,3330.1,3329.7,0.2992]
[1732244161346,3.00315,3329.9,3329.7,0.2992]
[1732244161582,3.003,3330.0,3328.9,0.2992]
[1732244161848,3.0,3330.0,3329.1,0.2992]
[1732244162046,3.0037,3329.3,3329.1,0.2992]
[1732244162548,3.00372,3329.2,3327.8,0.7922]
[1732244162751,3.00372,3329.2,3327.5,0.2992]
[1732244162752,3.00405,3328.9,3328.1,0.2992]
[1732244163308,3.00415,3328.8,3328.1,0.2992]
[1732244163620,3.0042,3328.7,3328.1,0.2992]
[1732244163943,3.00436,3328.5,3328.0,0.7922]
[1732244164172,3.00435,3328.5,3328.0,0.7922]
[1732244164330,3.00419,3328.7,3328.0,0.7922]
[1732244164532,3.00435,3328.5,3328.0,0.7922]
[1732244165027,3.00417,3328.7,3328.0,0.7922]
[1732244165235,3.00389,3329.1,3328.0,0.7922]
[1732244165555,3.00389,3329.1,3328.1,0.2992]
[1732244165755,3.0,3329.2,3328.3,0.2992]
[1732244166259,3.00372,3329.2,3328.3,0.2992]
[1732244166474,0.600366,3329.2,3328.2,0.7922]
[1732244166626,3.00419,3328.7,3328.2,0.7922]
[1732244166829,3.00405,3328.9,3328.2,0.7922]
[1732244167051,3.00364,3329.3,3328.2,0.7922]
[1732244167255,3.00373,3329.2,3328.2,0.7922]
[1732244167462,0.300364,3329.3,3328.3,0.2992]
[1732244167765,3.303994,3329.3,3328.3,0.2992]
[1732244167978,6.00354,3329.4,3328.4,0.7922]
[1732244168180,3.00305,3330.0,3328.4,0.7922]
[1732244168181,3.00373,3329.2,3328.4,0.7922]
[1732244168524,3.00363,3329.3,3328.4,0.7922]
[1732244168724,6.00315,3329.9,3328.6,0.2992]
[1732244168725,0.8272,3329.9,3328.6,0.2992]
[1732244168957,0.8272,3329.9,3327.7,0.0400419]
[1732244168958,0.8272,3329.9,3328.7,1.0914]
[1732244169163,6.00319,3329.8,3328.7,1.0914]
[1732244169324,3.00328,3329.7,3328.7,1.0914]
[1732244169525,6.00319,3329.8,3328.7,1.0914]
[1732244169526,3.00343,3329.6,3328.7,1.0914]
[1732244170029,6.00319,3329.8,3328.7,1.0914]
[1732244170030,3.00345,3329.5,3328.7,1.0914]
[1732244170767,3.00345,3329.5,3328.8,0.52239384]
[1732244170976,3.303895,3329.4,3328.9,0.22319384]
[1732244171276,3.00355,3329.4,3329.0,0.22319384]
[1732244171428,0.600692,3329.4,3329.1,0.22319384]
[1732244171646,3.0,3329.6,3329.2,0.22319384]
[1732244171849,3.0,3329.6,3329.3,0.22319384]
[1732244172052,3.0,3329.6,3329.4,0.22319384]
[1732244172274,6.603688,3329.6,3329.5,0.22319384]
[1732244172546,3.00355,3329.4,3328.8,0.2992]
[1732244172775,3.00355,3329.4,3328.9,0.22331107]
[1732244172948,6.603688,3329.6,3329.0,0.22332378]
[1732244173163,3.00362,3329.4,3329.1,0.22332378]
[1732244173489,3.00362,3329.4,3329.2,0.22332378]
[1732244173789,0.39521152,3329.5,3329.3,0.22332378]
[1732244173952,6.00336,3329.6,3328.7,0.7922]
[1732244173953,6.00336,3329.6,3329.5,0.2992]
[1732244174148,3.0,3329.7,3329.5,0.52252378]
[1732244174371,0.600321,3329.6,3329.5,0.2992]
[1732244174573,3.00321,3329.8,3329.5,0.5225723]